[Event "GER-ch Youth-U18 2022"]
[Site "Willingen"]
[Date "2022.06.08"]
[Round "5.5"]
[White "Dobrikov, Marco"]
[Black "Jeschke, Jan"]
[Result "1-0"]
[ECO "B90"]
[WhiteElo "2234"]
[BlackElo "2130"]
[Annotator "TA"]
[PlyCount "57"]
[EventDate "2022.06.05"]
[EventType "swiss"]
[EventRounds "9"]
[EventCountry "GER"]
[SourceTitle "playchess.com"]
[Source "ChessBase"]
[SourceQuality "1"]
[TimeControl "40/4500+30:900+30"]

{[%evp 12,57,27,25,43,33,22,6,14,21,31,33,29,-37,-20,-43,-11,-15,-13,-15,0,-76,-74,-79,-70,-103,-104,-106,8,0,0,-34,47,42,118,24,39,0,-25,-140,-113,-173,156,154,204,139,884,868]} 1. e4 {[%emt 0:00:00]} c5 {[%emt 0:00:00]} 2. Nf3 {[%emt 0:00:00]} d6 {[%emt 0:00:00]} 3. d4 {[%emt 0:00:00]} cxd4 {[%emt 0:00:00]} 4. Nxd4 {[%emt 0:00:00]} Nf6 {[%emt 0:00:00]} 5. Nc3 {[%emt 0:00:00]} a6 {[%emt 0:00:00]} 6. h3 {[%emt 0:00:00][%cal Bh2h3,Bh3h4][%mdl 32]} e6 {[%emt 0:00:00]} 7. g4 {[%emt 0:00:00]} Nfd7 {[%emt 0:00:00] B81: Sicilian Scheveningen: Keres Attack.} 8. Be3 {[%emt 0:00:00]} b5 {[%emt 0:00:00]} 9. a3 {[%emt 0:00:00]} Bb7 {[%emt 0:00:00] The position is equal.} 10. g5 {[%emt 0:00:00]} Nb6 {[%emt 0:00:00] The main line 10...Nb6 scores better than 10...Be7.} 11. h4 {[%emt 0:01:44]} N8d7 {[%emt 0:00:00] [#]} 12. Bd3 $146 {[%emt 0:20:15]} ({White has to play} 12. Rh3 $1 $11) ({Predecessor:} 12. Qd2 Rc8 13. O-O-O d5 14. exd5 b4 15. axb4 Bxd5 16. Nxd5 Nxd5 17. Bxa6 Bxb4 18. Qe2 {½-½ (32) Navara,D (2737)-Kasparov,G (2812) Saint Louis 2017}) 12... Rc8 $15 {[%emt 0:01:02]} 13. Qe2 {[%emt 0:01:06]} Ne5 {[%emt 0:10:35]} 14. f4 {[%emt 0:13:40]} Nec4 {[%emt 0:01:14]} 15. Bc1 {[%emt 0:07:43]} g6 {[%emt 0:41:50]} 16. b3 {[%emt 0:04:36]} (16. Qf2 $11) 16... Bg7 $17 {[%emt 0:00:23]} 17. Qf2 {[%emt 0:00:03] [#]} e5 $1 {[%emt 0:10:24]} 18. fxe5 {[%emt 0:08:11]} Nxe5 {[%emt 0:00:38]} 19. Bb2 {[%emt 0:00:04]} d5 {[%emt 0:06:49]} (19... Nxd3+ $17 20. cxd3 O-O) 20. O-O-O $11 {[%emt 0:00:37]} O-O $36 {[%emt 0:00:12][%mdl 2048] Black is pushing.} 21. Rhe1 {[%emt 0:04:28]} Nxd3+ {[%emt 0:05:56]} (21... Qd6 $15) 22. Rxd3 $14 {[%emt 0:00:05]} Re8 {[%emt 0:03:54]} (22... dxe4 $14 23. Nxe4 Nd7) 23. Rf1 {[%emt 0:05:59]} (23. Red1 $16) 23... Qd7 $11 {[%emt 0:01:23]} 24. Nde2 {[%emt 0:00:43] Pair of Knights!} ({White should try} 24. Nf3 $14 d4 25. Nxd4 Bxe4 26. Nxe4 Rxe4 {[#]} 27. Nxb5 $1 Bxb2+ 28. Kxb2 Qxb5 29. Rd8+ (29. Qxf7+ Kh8 $11) 29... Rxd8 30. Qxf7+ Kh8 31. Qf6+ Kg8 32. Qf7+ Kh8 33. Qf6+ Kg8 34. Qf7+) 24... Qc7 {[%emt 0:01:42]} 25. Rf3 {[%emt 0:04:27] Active counter play!} (25. exd5 $11 {remains equal.} Nxd5 26. Nd4) 25... Re7 $17 {[%emt 0:00:12]} 26. Rf6 {[%emt 0:00:48]} (26. e5 $17) 26... Bc6 $2 {[%emt 0:01:32]} (26... Bxf6 $19 27. Qxf6 Re6) 27. Nd4 $16 {[%emt 0:01:36]} Be8 {[%emt 0:00:25]} (27... Ba8 $16 {was necessary.}) 28. exd5 {[%emt 0:01:37] Threatens to win with d6.} Rd7 {[%emt 0:00:42][%mdl 8192] [#] Against d6} (28... Qc5 $16) 29. Ne6 $1 {[%emt 0:01:06][%mdl 512] Weighted Error Value: White=0.35/Black=0.41} 1-0

[Event "GER-ch Youth-U18 2022"]
[Site "Willingen"]
[Date "2022.06.08"]
[Round "5.6"]
[White "Colbow, Collin"]
[Black "Kallweit, Paul"]
[Result "1/2-1/2"]
[ECO "A06"]
[WhiteElo "2360"]
[BlackElo "1863"]
[Annotator "TA"]
[PlyCount "83"]
[EventDate "2022.06.05"]
[EventType "swiss"]
[EventRounds "9"]
[EventCountry "GER"]
[SourceTitle "playchess.com"]
[Source "ChessBase"]
[SourceQuality "1"]
[TimeControl "40/4500+30:900+30"]

{[%evp 12,83,-22,-22,0,0,2,0,11,-11,40,45,46,35,47,41,26,37,31,42,51,16,56,0,17,0,58,7,8,11,16,0,0,-50,-53,-53,-52,-56,-39,-34,-4,-12,0,-28,14,25,45,58,58,34,38,37,45,30,40,0,0,0,8,-9,-9,-9,17,17,17,17,15,20,22,23,18,20,25,0]} 1. Nf3 {[%emt 0:00:00]} d5 {[%emt 0:00:00]} 2. g3 {[%emt 0:00:00]} Nf6 {[%emt 0:00:00]} 3. Bg2 {[%emt 0:00:00]} c5 {[%emt 0:00:00]} 4. O-O {[%emt 0:00:00]} Nc6 {[%emt 0:00:00]} 5. c4 {[%emt 0:00:00]} d4 {[%emt 0:00:00]} 6. d3 {[%emt 0:04:01]} e5 {[%emt 0:07:34]} 7. e3 {[%emt 0:07:29]} dxe3 {[%emt 0:25:20] A09: Réti Opening: 1 Nf3 d5 2 c4.} 8. fxe3 {[%emt 0:07:37]} Be7 {[%emt 0:06:45]} 9. Nc3 {[%emt 0:02:42]} O-O {[%emt 0:01:59] The position is equal.} 10. a3 {[%emt 0:01:37] [#]} Bf5 $146 {[%emt 0:11:06] [#]} (10... h6 $11) ({Predecessor:} 10... e4 11. dxe4 Qxd1 12. Rxd1 Bg4 13. Bd2 Rfe8 14. h3 Bh5 15. g4 Bg6 16. e5 Ne4 {½-½ (114) Lazic,M (2459)-Dimitrov,P (2353) Rijeka 2011}) 11. Nxe5 $1 $14 {[%emt 0:28:36]} Nxe5 {[%emt 0:00:38]} 12. Rxf5 {[%emt 0:00:05]} Nxd3 {[%emt 0:01:08]} 13. Bxb7 {[%emt 0:02:35]} Rb8 {[%emt 0:04:54]} 14. Bd5 {[%emt 0:00:18]} Nxc1 {[%emt 0:02:10]} 15. Qxc1 {[%emt 0:00:13]} g6 {[%emt 0:00:46]} 16. Rf1 {[%emt 0:01:18]} Ng4 {[%emt 0:03:41]} 17. Ne4 {[%emt 0:08:45]} Nf6 {[%emt 0:01:30]} 18. Nc3 {[%emt 0:01:52]} Ng4 {[%emt 0:00:05]} 19. Rf4 {[%emt 0:02:11]} ({White should try} 19. Bf3 $14 Ne5 20. Nd5) 19... Ne5 $11 {[%emt 0:04:15]} 20. Qc2 {[%emt 0:02:34] Prevents Nd3.} Bg5 {[%emt 0:03:20]} 21. Re4 {[%emt 0:00:05]} Qe7 {[%emt 0:00:41]} 22. h4 {[%emt 0:03:15]} (22. Na4 $11) 22... Bh6 $1 $15 {[%emt 0:00:41][%mdl 1024] Black has compensation.} 23. Kg2 {[%emt 0:07:07]} Kh8 {[%emt 0:02:03]} ({Much less strong is} 23... Qf6 24. Rf1 Qe7 25. Na4 $14) 24. Re1 $1 {[%emt 0:00:26][%cal Oe4f4]} f5 {[%emt 0:07:06]} ({But not} 24... Qf6 25. Na4 $11 (25. Rf1 Qg7 $17)) 25. Rf4 {[%emt 0:00:11][%cal Oc3a4,Be4f4,Bf4f2,Bf2e2][%mdl 32]} Qc7 {[%emt 0:00:41]} 26. Rf2 {[%emt 0:01:42]} Ng4 {[%emt 0:00:34][%csl LRe3,LRf2]} 27. Rfe2 {[%emt 0:00:01]} Rbe8 {[%emt 0:00:37][%cal Rg4e3]} 28. Bf3 {[%emt 0:01:35]} Rxe3 {[%emt 0:00:51]} 29. Nd5 $1 {[%emt 0:01:13][%csl LRc7,LRe3]} Qe5 {[%emt 0:00:48][%cal Oa7a5]} 30. Nxe3 {[%emt 0:00:39]} Nxe3+ {[%emt 0:00:13] [#]} 31. Rxe3 $1 {[%emt 0:00:18]} Bxe3 {[%emt 0:00:16]} 32. Qd3 {[%emt 0:00:30]} Re8 $1 {[%emt 0:00:43]} (32... Qxb2+ $2 33. Re2 Qd4 34. Qxe3 $18) 33. Bc6 {[%emt 0:01:07]} (33. b4 $5 {[%cal Rb4c5]} Qb2+ 34. Kh3 $11) 33... Re7 {[%emt 0:00:26]} (33... Qxb2+ $2 34. Kh3 $18) 34. Re2 {[%emt 0:00:58]} Qd4 {[%emt 0:00:32]} 35. Qb3 {[%emt 0:00:59]} Kg7 {[%emt 0:00:45]} 36. Bd5 {[%emt 0:00:50]} Qe5 {[%emt 0:00:39]} 37. Kf3 {[%emt 0:00:38]} f4 {[%emt 0:00:05] White must now prevent ...Qh5+.} 38. Qc3 {[%emt 0:00:15]} Qxc3 {[%emt 0:00:46]} 39. bxc3 {[%emt 0:00:01]} Kf6 {[%emt 0:00:20][%cal Of4g3]} 40. gxf4 {[%emt 0:01:12]} Bc1 {[%emt 0:00:30]} 41. Be4 {[%emt 0:00:00]} Rd7 {[%emt 0:01:05]} 42. Bd5 {[%emt 0:00:00] Weighted Error Value: White=0.12 (very precise) /Black=0.09 (flawless)} 1/2-1/2

[Event "GER-ch Youth-U18 2022"]
[Site "Willingen"]
[Date "2022.06.08"]
[Round "5.7"]
[White "Muller, Magnus"]
[Black "Hinrichs, Paul"]
[Result "1/2-1/2"]
[ECO "C54"]
[WhiteElo "1464"]
[BlackElo "2244"]
[Annotator "TA"]
[PlyCount "100"]
[EventDate "2022.06.05"]
[EventType "swiss"]
[EventRounds "9"]
[EventCountry "GER"]
[SourceTitle "playchess.com"]
[Source "ChessBase"]
[SourceQuality "1"]
[TimeControl "40/4500+30:900+30"]

{[%evp 20,100,35,31,18,28,31,0,0,0,57,51,57,0,45,57,50,18,50,21,60,22,43,18,49,0,0,-11,-9,-8,64,64,44,23,20,31,23,22,26,32,47,22,29,18,105,112,192,192,192,197,197,202,204,204,206,206,204,206,208,204,307,318,787,769,970,897,796,347,347,347,375,347,347,0,347,0,0,0,0,0,0,0,0]} 1. e4 {[%emt 0:00:00]} e5 {[%emt 0:00:00]} 2. Nf3 {[%emt 0:00:00]} Nc6 {[%emt 0:00:00]} 3. Bc4 {[%emt 0:00:00]} Bc5 {[%emt 0:00:00]} 4. c3 {[%emt 0:00:00]} Nf6 {[%emt 0:00:00]} 5. d4 {[%emt 0:00:00]} exd4 {[%emt 0:00:00]} 6. e5 {[%emt 0:00:00]} d5 {[%emt 0:00:00]} 7. Bb5 {[%emt 0:00:00]} Ne4 {[%emt 0:00:00]} 8. cxd4 {[%emt 0:00:00]} Bb4+ {[%emt 0:00:00]} 9. Bd2 {[%emt 0:00:00]} Nxd2 {[%emt 0:00:00]} 10. Nbxd2 {[%emt 0:00:00][%cal Bb1d2,Bd2b3,Bb3c5][%mdl 32]} O-O $1 {[%emt 0:00:00] 10...0-0 is better than 10...Bd7.} 11. O-O {[%emt 0:00:00]} Ne7 {[%emt 0:00:00] C54: Giuoco Piano: 4 c3 Nf6, main lines with 5 d4 and 5 d3.} 12. a3 {[%emt 0:00:00]} Ba5 {[%emt 0:00:00]} 13. b4 {[%emt 0:00:00]} Bb6 {[%emt 0:00:00]} 14. Bd3 {[%emt 0:00:00] [#]} Nf5 $146 {[%emt 0:10:43]} (14... a5 $11) ({Predecessor:} 14... Bf5 15. Nb3 Bxd3 16. Qxd3 Ng6 17. Nc5 Qc8 18. Qe3 c6 19. Rac1 a6 20. Nd2 Ba7 {1-0 (53) Tiger Norqvist,A (2144)-Sorensen,H (2244) Norrkoeping 2018}) 15. Nb3 $14 {[%emt 0:00:00]} a5 {[%emt 0:01:42]} 16. Re1 {[%emt 0:17:19]} ({Better is} 16. Nxa5 $14 Bxa5 17. bxa5) 16... Nh4 {[%emt 0:11:18]} 17. Nxh4 {[%emt 0:04:47]} Qxh4 {[%emt 0:01:43]} 18. g3 {[%emt 0:04:22]} Qg4 {[%emt 0:03:51]} 19. Be2 {[%emt 0:02:39]} Qg6 {[%emt 0:00:31]} 20. Nc5 {[%emt 0:03:36]} Ra7 {[%emt 0:03:17]} 21. Bf3 {[%emt 0:14:06]} c6 {[%emt 0:00:14]} 22. Qd2 {[%emt 0:00:13]} (22. Na4 $14 {should be considered.} Bd8 23. b5) 22... f6 {[%emt 0:03:03] aiming for ...fxe5.} 23. Bg2 {[%emt 0:12:00]} fxe5 {[%emt 0:01:36]} 24. dxe5 {[%emt 0:02:52]} Bf5 {[%emt 0:09:44]} (24... Qe8 $11) 25. Na4 {[%emt 0:03:38] 0x0.001aa10e3f3fdp-1022s more active pieces.} Bd8 {[%emt 0:12:45]} 26. Qd4 {[%emt 0:00:55]} Ra8 {[%emt 0:01:36]} 27. b5 {[%emt 0:01:00]} Kh8 {[%emt 0:00:39]} 28. bxc6 {[%emt 0:00:40]} bxc6 {[%emt 0:00:06]} 29. Rac1 $40 {[%emt 0:00:13][%mdl 128] White attacks.} Rb8 {[%emt 0:01:33]} 30. Rc3 {[%emt 0:07:14]} h5 {[%emt 0:02:49]} 31. Rec1 {[%emt 0:00:32]} h4 {[%emt 0:00:19]} (31... Rb1 $11 {keeps the balance.}) 32. Rxc6 $16 {[%emt 0:01:44]} Qxc6 {[%emt 0:03:35]} 33. Rxc6 $18 {[%emt 0:00:28]} Rb1+ {[%emt 0:00:09]} 34. Bf1 {[%emt 0:00:22]} Bh3 {[%emt 0:00:17][%csl Gh3][%cal Rb1f1] [#]} 35. Qd3 {[%emt 0:00:55]} Rxf1+ {[%emt 0:00:13]} 36. Qxf1 {[%emt 0:02:26]} Bxf1 {[%emt 0:00:01]} 37. Kxf1 {[%emt 0:00:07][%mdl 4096] Endgame KRB-KRN} Be7 {[%emt 0:01:00]} 38. Nc5 {[%emt 0:07:28]} hxg3 {[%emt 0:01:40]} 39. hxg3 {[%emt 0:00:03]} Rf5 {[%emt 0:00:23]} (39... Rb8 {might work better.}) 40. f4 {[%emt 0:04:49] Black must now prevent Rc7.} Bxc5 $2 {[%emt 0:03:59]} (40... g5 41. Ne6 gxf4) 41. Rxc5 {[%emt 0:15:07] KR-KR} g5 {[%emt 0:15:02]} 42. Rxd5 {[%emt 0:00:00][%cal Oe5e6] Strongly threatening e6!} gxf4 {[%emt 0:00:00]} 43. Rxa5 {[%emt 0:00:00]} (43. Kf2 $142 fxg3+ 44. Kxg3) 43... fxg3+ {[%emt 0:00:00]} 44. Kg2 {[%emt 0:00:00]} Rg5 {[%emt 0:00:00]} 45. Rc5 {[%emt 0:00:00]} Rg4 {[%emt 0:00:00] [#]} 46. Ra5 $2 {[%emt 0:00:00]} (46. Rc8+ $1 $18 Kg7 47. Ra8) 46... Kg7 $2 {[%emt 0:00:00][%mdl 8192]} (46... Rg5 $1 $11) 47. Ra6 $2 {[%emt 0:00:00]} (47. Ra8 $18) 47... Re4 $1 $11 {[%emt 0:00:00] The position is equal.} 48. e6 {[%emt 0:00:00] Threatens to win with a4.} Kf6 {[%emt 0:00:00]} 49. Kxg3 {[%emt 0:00:00]} Rxe6 {[%emt 0:00:00]} 50. Rxe6+ {[%emt 0:00:00]} Kxe6 {[%emt 0:00:00] Weighted Error Value: White=0.43/Black=0.35} 1/2-1/2

[Event "GER-ch Youth-U18 2022"]
[Site "Willingen"]
[Date "2022.06.08"]
[Round "5.8"]
[White "Zackrisson, Peter"]
[Black "Leonard, Timo"]
[Result "1-0"]
[ECO "B12"]
[WhiteElo "2015"]
[BlackElo "2018"]
[Annotator "TA"]
[PlyCount "154"]
[EventDate "2022.06.05"]
[EventType "swiss"]
[EventRounds "9"]
[EventCountry "GER"]
[SourceTitle "playchess.com"]
[Source "ChessBase"]
[SourceQuality "1"]
[TimeControl "40/4500+30:900+30"]

{[%evp 9,154,12,15,9,21,18,18,12,13,0,0,2,34,12,7,1,9,0,6,0,46,38,43,-22,31,34,73,20,106,0,0,-29,-56,-40,-12,-73,-79,-81,0,0,11,0,79,-87,-8,-263,-256,-369,-277,-403,-196,-578,39,39,39,39,37,37,87,75,74,-6,0,0,16,0,1021,1014,965,909,29953,29960,5933,638,650,650,641,570,625,612,29947,29948,29942,740,740,655,29948,29949,29952,29953,29955,2397,9466,1079,29960,29954,29948,29951,12787,12841,29938,10181,10743,10190,29951,29961,12828,8668,2570,2570,2459,1154,29976,29977,29977,29971,29978,11852,29977,29978,29978,29976,29976,29971,10647,29970,29970,29971,29971,29972,29971,5317,2393,0,29954,29946,1043,1043,1017,988,29976,29977,29979,29980,29980,29981,29978]} 1. e4 {[%emt 0:00:00]} c6 {[%emt 0:00:00]} 2. d4 {[%emt 0:00:00]} d5 {[%emt 0:00:00]} 3. e5 {[%emt 0:00:00]} c5 {[%emt 0:00:00]} 4. dxc5 {[%emt 0:00:00]} e6 {[%emt 0:00:00]} 5. a3 {[%emt 0:00:00]} Bxc5 {[%emt 0:00:00]} 6. Qg4 {[%emt 0:00:00] B12: Caro-Kann: Advance Variation.} Ne7 {[%emt 0:00:00]} 7. Nf3 {[%emt 0:00:00]} O-O {[%emt 0:00:00]} 8. Bd3 {[%emt 0:00:00][%cal Od3h7] aiming for Bxh7+! The position is equal.} f5 {[%emt 0:00:00]} 9. Qg3 {[%emt 0:00:00]} Ng6 {[%emt 0:00:00]} 10. O-O {[%emt 0:04:21]} Nc6 {[%emt 0:00:00]} 11. b4 {[%emt 0:03:16]} Be7 {[%emt 0:00:00] [#]} 12. Re1 $146 {[%emt 0:03:56]} ({Predecessor:} 12. Bb2 a6 13. Nbd2 b5 14. Nb3 Bd7 15. Nbd4 Nxd4 16. Bxd4 Rf7 17. Nd2 f4 18. Qg4 {1-0 (43) Tari,A (2615)-Sadzikowski,D (2523) Reykjavik 2019}) 12... a5 {[%emt 0:00:00]} 13. b5 {[%emt 0:01:40]} Nb8 {[%emt 0:00:00]} (13... f4 $2 14. Qg4 Nb8 15. Nbd2 $18 (15. Bxg6 hxg6 16. Bxf4 Qe8 $18)) 14. Nc3 {[%emt 0:12:22]} Nd7 {[%emt 0:01:57]} (14... a4 $11 {is more appropriate.}) 15. Na4 $1 $14 {[%emt 0:00:20]} b6 {[%emt 0:13:46][%cal Bb7b6,Bb6c5,Bc5c4][%mdl 32]} 16. c4 {[%emt 0:07:39]} ({White should try} 16. Bg5 $14) 16... Nc5 {[%emt 0:34:53]} ({Black should play} 16... Bb7 $11) 17. Nxc5 {[%emt 0:00:47]} bxc5 {[%emt 0:00:45]} 18. cxd5 {[%emt 0:04:24]} (18. Bg5 $16) 18... Qxd5 {[%emt 0:00:32]} (18... exd5 $11 {keeps the balance.} 19. Bg5 Bxg5 20. Qxg5 Qxg5 21. Nxg5 Rb8) 19. Rd1 {[%emt 0:08:09]} (19. Bf1 $1 $16) 19... c4 $11 {[%emt 0:01:55]} 20. Bc2 {[%emt 0:00:13]} (20. Be2 $5 {[%cal Rd1d5]} Qxb5 21. a4 $15) 20... Qxb5 {[%emt 0:00:56]} 21. Rb1 {[%emt 0:00:19]} Qc5 {[%emt 0:12:01]} 22. Be3 {[%emt 0:25:19]} (22. h4 $1 $11) 22... Qxa3 $17 {[%emt 0:00:27] Threatens to win with ...f4.} 23. Bd4 {[%emt 0:00:18]} Bd8 {[%emt 0:03:13]} (23... a4 $17 24. Ra1 Qb4) 24. h4 $1 $11 {[%emt 0:04:40][%cal Bh2h4,Bh4h5][%mdl 32]} Qe7 {[%emt 0:03:09]} 25. h5 {[%emt 0:02:18]} Nh4 {[%emt 0:00:24]} (25... Nh8 $1 $11 {remains equal.}) 26. Nd2 $2 {[%emt 0:04:43] [#] White is more active.} (26. Be3 $16 {and life is bright.}) 26... Bb7 {[%emt 0:09:08]} (26... Ba6 $1 $17 27. Nf3 Rf7 28. Nxh4 Qxh4 29. Qxh4 Bxh4) 27. Nxc4 $2 {[%emt 0:01:44][%mdl 8192]} (27. Bc5 $1 $11 {and White has nothing to worry.} Qc7 28. Bd6 (28. Nxc4 Bxg2 29. Bxf8 Kxf8 $11)) 27... Bxg2 $19 {[%emt 0:00:30]} 28. Nd2 {[%emt 0:02:14]} (28. f4 {was called for.}) 28... Qg5 {[%emt 0:03:34]} 29. Bb3 {[%emt 0:00:37]} (29. Qxg5 $142 Bxg5 30. Bb3) 29... Kh8 {[%emt 0:01:19]} (29... Qxh5 $142 30. Bc5 (30. Bxe6+ $2 Kh8 $19) 30... Re8) 30. Bxe6 $2 {[%emt 0:00:35]} (30. Qxg5 {is more resistant.} Bxg5 31. Be3 (31. Bxe6 $2 Bxd2 32. Rxd2 Be4 $19) 31... Bxe3 32. fxe3) 30... Qxg3 $2 {[%emt 0:00:43]} (30... Qxh5 $19 31. Bc5 Re8) 31. fxg3 $14 {[%emt 0:00:08]} Nf3+ {[%emt 0:00:06]} 32. Kxg2 {[%emt 0:00:21]} Nxd4 {[%emt 0:00:07]} 33. Bd5 {[%emt 0:00:16]} Rc8 {[%emt 0:00:49]} (33... Ra7 $1 $14) 34. Nc4 $16 {[%emt 0:00:15][%mdl 1024] White has strong compensation.} Nc2 {[%emt 0:01:03]} 35. Rdc1 {[%emt 0:01:31]} ({Better is} 35. Kh3 $16 {And now Nd6 would win.} Nb4 36. Be6) 35... Nb4 {[%emt 0:00:35]} 36. Be6 $36 {[%emt 0:00:15][%mdl 2048] White has the initiative.} Rc5 {[%emt 0:00:48]} 37. Nd6 {[%emt 0:00:07]} Rxe5 {[%emt 0:00:46][%mdl 8192]} (37... Rxc1 $11 38. Rxc1 Nd3) 38. Nf7+ $18 {[%emt 0:00:09]} Rxf7 {[%emt 0:00:07]} 39. Bxf7 {[%emt 0:00:06]} g6 {[%emt 0:00:39] [#]} 40. h6 $1 {[%emt 0:01:19]} Re2+ {[%emt 0:00:44]} 41. Kf1 {[%emt 0:16:03]} (41. Kh1 $142 Re8 42. Bxe8) 41... Rh2 {[%emt 0:00:00]} 42. Rc8 {[%emt 0:00:00][%cal Rc8d8]} Rxh6 {[%emt 0:00:00] ...Rh1+ is the strong threat.} 43. Rxd8+ {[%emt 0:00:00]} Kg7 {[%emt 0:00:00] Strongly threatening ...Rh1+.} 44. Bd5 {[%emt 0:00:00] Inhibits Rh1+.} Nxd5 {[%emt 0:00:00][%mdl 4096] Endgame KRR-KRN} 45. Rb7+ {[%emt 0:00:00]} Ne7 {[%emt 0:00:00]} 46. Rxe7+ {[%emt 0:00:00]} (46. Rdd7 $142 Rh1+ 47. Kg2 Rc1 48. Rxe7+ Kf6 49. Rxh7 Kg5 50. Rb6 Rc2+ 51. Kh3) 46... Kf6 {[%emt 0:00:00]} 47. Ra7 {[%emt 0:00:00] Intending Kg2 and mate.} Rh1+ {[%emt 0:00:00]} 48. Kg2 {[%emt 0:00:00]} Ra1 {[%emt 0:00:00]} 49. Rda8 {[%emt 0:00:00]} Kg5 {[%emt 0:00:13]} 50. Rxa5 {[%emt 0:00:00]} Rb1 {[%emt 0:00:04]} 51. Ra2 {[%emt 0:00:00] Hoping for R8a7.} h5 {[%emt 0:00:37]} 52. R8a4 {[%emt 0:00:00]} Rc1 {[%emt 0:00:17]} 53. Rb4 {[%emt 0:00:00]} Rc6 {[%emt 0:00:28]} 54. Ra3 {[%emt 0:00:00]} Rd6 {[%emt 0:00:33]} 55. Kf3 {[%emt 0:00:00]} (55. Rab3 $142 Rd5 56. Kh3 Rd8 57. Rb6 Kh6 58. Rf6 Kg5 59. Rbb6 Rg8 60. Rfc6) 55... Rc6 {[%emt 0:00:07]} 56. Rab3 {[%emt 0:00:00] White threatens Rb6 and mate.} Rd6 {[%emt 0:00:26]} 57. Rb6 {[%emt 0:00:00]} Rd4 {[%emt 0:00:05]} 58. R3b4 {[%emt 0:00:00]} Rd3+ {[%emt 0:00:09]} 59. Kg2 {[%emt 0:00:00] Black must now prevent Ra6.} Rd8 {[%emt 0:00:46]} 60. Ra6 {[%emt 0:00:00] White wants to mate with Rbb6.} Rg8 {[%emt 0:00:42]} 61. Rbb6 {[%emt 0:00:00]} Rg7 {[%emt 0:00:04]} 62. Re6 {[%emt 0:00:00]} Rg8 {[%emt 0:00:10]} 63. Rad6 {[%emt 0:00:00]} (63. Kf3 $142 Rg7 64. Rad6 Rg8 65. Rc6 Rg7 66. Ra6 Rg8 67. Rad6 Rg7 68. Re8) 63... Rg7 {[%emt 0:00:05]} 64. Kf3 {[%emt 0:00:00]} Rg8 {[%emt 0:00:16]} 65. Ke3 {[%emt 0:00:00]} Rg7 {[%emt 0:00:04]} 66. Kd4 {[%emt 0:00:00]} Rg8 {[%emt 0:00:08]} 67. Ke5 {[%emt 0:00:00]} Rg7 {[%emt 0:00:13]} 68. Rf6 {[%emt 0:00:00]} Re7+ {[%emt 0:00:31]} 69. Rde6 {[%emt 0:00:00][%csl Ge6][%cal Rf6g6]} Rg7 {[%emt 0:00:11]} 70. Kd6 {[%emt 0:00:00]} (70. Rf8 $142 Kg4 71. Kf6 Ra7 72. Kxg6 Kxg3 73. Rxf5 h4 74. Re3+ Kg2 75. Re4) 70... Rg8 {[%emt 0:00:34]} 71. Ke5 {[%emt 0:00:00]} Rg7 {[%emt 0:00:08]} 72. Rf8 {[%emt 0:00:00] Prevents Rg8.} Ra7 {[%emt 0:01:54]} 73. Rg8 {[%emt 0:00:00][%csl Gg8][%cal Re6g6]} Ra5+ {[%emt 0:00:03]} 74. Kd4 {[%emt 0:00:00][%csl Ge6][%cal Rg8g6]} Ra4+ {[%emt 0:00:03]} 75. Ke3 {[%emt 0:00:00][%csl Ge6][%cal Rg8g6] White mates.} Ra3+ {[%emt 0:00:15]} 76. Kf2 {[%emt 0:00:00][%csl Ge6][%cal Rg8g6]} Ra2+ {[%emt 0:00:15]} 77. Kf3 {[%emt 0:00:00][%csl Ge6][%cal Rg8g6]} Ra3+ {[%emt 0:00:14] White used his chance.  Weighted Error Value: White=0.56/Black=0.87} 1-0